bitfinex-derivatives/quotes_BTCF0:USTF0_20210705
["timestamp","ask_amount","ask_price","bid_price","bid_amount"]
[1625516185483,0.52966749,34089.0,34082.0,4.46482105]
[1625516185584,0.01737891,34088.0,34083.0,0.34386578]
[1625516185683,0.01737891,34088.0,34084.0,0.057]
[1625516185784,0.01737891,34088.0,34087.0,0.72172632]
[1625516185885,1.54218713,34090.0,34087.0,0.72172632]
[1625516185984,1.54218713,34090.0,34087.0,0.84920295]
[1625516186083,1.54218713,34090.0,34087.0,0.85267826]
[1625516186187,1.60118713,34090.0,34088.0,0.01147612]
[1625516186285,1.60118713,34090.0,34088.0,0.07047612]
[1625516186385,0.059,34090.0,34088.0,0.07395137]
[1625516186484,0.059,34090.0,34089.0,0.01146676]
[1625516186584,0.059,34090.0,34089.0,0.07046676]
[1625516186685,0.059,34090.0,34089.0,3.91344203]
[1625516187488,0.059,34090.0,34089.0,3.85444203]
[1625516187638,0.059,34090.0,34089.0,0.01494203]
[1625516187739,0.059,34090.0,34089.0,0.2520422]
[1625516187989,0.059,34090.0,34089.0,0.24057544]
[1625516188693,0.059,34090.0,34089.0,0.29957544]
[1625516189243,0.059,34090.0,34089.0,0.24057544]
[1625516191602,0.059,34090.0,34089.0,0.29957544]
[1625516191850,0.059,34090.0,34089.0,0.24057544]
[1625516195410,0.059,34090.0,34089.0,0.75990491]
[1625516200670,0.059,34090.0,34089.0,2.14407798]
[1625516204534,0.059,34090.0,34089.0,0.75990491]
[1625516205735,0.059,34090.0,34089.0,1.9707017]
[1625516206037,0.07637737,34090.0,34089.0,1.97417717]
[1625516208037,0.07637737,34090.0,34089.0,3.35778829]
[1625516208337,0.07637737,34090.0,34089.0,1.97417717]
[1625516210593,0.07637737,34090.0,34089.0,3.357697]
[1625516210945,0.07637737,34090.0,34089.0,1.97417717]
[1625516211596,0.07637737,34090.0,34089.0,3.35767252]
[1625516212848,0.07637737,34090.0,34089.0,1.97417717]
[1625516216105,0.07637737,34090.0,34089.0,3.01183457]
[1625516222824,0.07637737,34090.0,34089.0,4.39590294]
[1625516224981,0.41933364,34090.0,34089.0,4.39590294]
[1625516225081,0.93368235,34090.0,34089.0,4.39590294]
[1625516226035,0.41933364,34090.0,34089.0,4.39590294]
[1625516226890,0.93380324,34090.0,34089.0,4.39590294]
[1625516228599,0.59084697,34090.0,34089.0,4.39590294]
[1625516233958,0.93426086,34090.0,34089.0,4.39590294]
[1625516234056,0.93426086,34090.0,34089.0,9.56230294]
[1625516234357,0.93426086,34090.0,34089.0,9.5737719]
[1625516234555,0.41979126,34090.0,34089.0,9.5737719]
[1625516234856,0.07637737,34090.0,34089.0,11.13387899]
[1625516235807,0.01737737,34090.0,34089.0,11.13387899]
[1625516236307,0.07637737,34090.0,34089.0,11.13387899]
[1625516242976,0.059,34090.0,34089.0,11.13387899]
[1625516244782,0.86019214,34091.0,34089.0,11.13387899]
[1625516244881,0.91919214,34091.0,34089.0,11.19087899]
[1625516244981,0.91919214,34091.0,34090.0,0.01148098]
[1625516245081,0.91919214,34091.0,34090.0,0.28651098]
[1625516245283,0.93656794,34091.0,34090.0,0.28998614]
[1625516245984,0.93656794,34091.0,34090.0,6.71069547]
[1625516246397,0.86019214,34091.0,34090.0,6.71069547]
[1625516246502,0.86019214,34091.0,34090.0,6.76969547]
[1625516246618,0.91919214,34091.0,34090.0,7.26969547]
[1625516246704,0.86019214,34091.0,34090.0,7.26969547]
[1625516247542,1.54895357,34100.0,34090.0,7.26969547]
[1625516247543,0.3458892,34097.0,34090.0,9.00476321]
[1625516247643,0.4048892,34097.0,34091.0,0.0879]
[1625516247741,0.3458892,34097.0,34091.0,0.0879]
[1625516247842,0.4048892,34097.0,34092.0,0.01147418]
[1625516247942,0.4048892,34097.0,34096.0,8.15414052]
[1625516247943,0.059,34097.0,34096.0,8.15414052]
[1625516248244,0.059,34097.0,34096.0,8.22460414]
[1625516248447,0.059,34097.0,34096.0,7.21488121]
[1625516248848,0.059,34097.0,34096.0,10.86278121]
[1625516250748,0.059,34097.0,34096.0,7.21488121]
[1625516251049,0.059,34097.0,34096.0,7.15588121]
[1625516251250,0.059,34097.0,34096.0,7.15240694]
[1625516251347,0.059,34097.0,34096.0,7.14094332]
[1625516251447,0.059,34097.0,34096.0,5.57951216]
[1625516251448,1.32777152,34097.0,34096.0,5.57951216]
[1625516251747,1.34514708,34097.0,34096.0,5.57951216]
[1625516251949,1.34514708,34097.0,34096.0,4.19157335]
[1625516251950,3.59000376,34097.0,34096.0,4.19157335]
[1625516252050,7.56500376,34097.0,34096.0,4.19157335]
[1625516252603,8.94556483,34097.0,34096.0,2.97712689]
[1625516253101,9.16131483,34097.0,34096.0,2.97712689]
[1625516254354,9.16131483,34097.0,34096.0,1.93617278]
[1625516257363,4.32612556,34097.0,34096.0,0.72172632]
[1625516257767,9.16054688,34097.0,34096.0,1.93470055]
[1625516258940,9.16054688,34097.0,34096.0,1.24157242]
[1625516259034,9.16054688,34097.0,34096.0,1.18257242]
[1625516259138,9.10154688,34097.0,34096.0,0.94199698]
[1625516259569,9.13630739,34097.0,34096.0,0.94199698]
[1625516259687,10.68970444,34097.0,34096.0,0.42215088]
[1625516260424,11.17085532,34097.0,34096.0,0.42215088]
[1625516260722,12.89601141,34097.0,34096.0,0.42215088]
[1625516261389,12.95501141,34097.0,34096.0,0.42215088]
[1625516261490,12.95501141,34097.0,34090.0,0.86637139]
[1625516261722,12.95501141,34097.0,34090.0,7.139e-05]
[1625516261931,0.05214891,34096.0,34089.0,0.34648951]
[1625516262029,0.05214891,34096.0,34089.0,0.33818951]
[1625516262142,0.11114891,34096.0,34089.0,0.32948951]
[1625516262223,0.17014891,34096.0,34089.0,8.951e-05]
[1625516262426,0.72172632,34090.0,34088.0,0.69297902]
[1625516262528,0.72172632,34090.0,34083.0,0.69304933]
[1625516262529,6.58076917,34090.0,34083.0,0.69304933]
[1625516262625,6.85686917,34090.0,34083.0,0.69304933]
[1625516262733,6.91586917,34090.0,34083.0,0.69304933]
[1625516263035,4.30584884,34084.0,34081.0,0.69306046]
[1625516263131,4.36484884,34084.0,34081.0,0.69306046]
[1625516263226,4.42384884,34084.0,34081.0,0.69306046]
[1625516263344,0.01738317,34083.0,34081.0,0.69306046]
[1625516263433,0.39089317,34083.0,34081.0,0.69306046]
[1625516263527,0.39089317,34083.0,34080.0,1.03959069]
[1625516263528,4.30499725,34082.0,34080.0,0.6930707]
[1625516263728,4.42299725,34082.0,34080.0,0.6930707]
[1625516263829,0.0173835,34081.0,34080.0,0.6930707]
[1625516263929,0.1353835,34081.0,34080.0,0.6930707]
[1625516264028,0.1353835,34081.0,34079.0,0.69253009]
[1625516264029,3.40434077,34081.0,34079.0,0.69253009]
[1625516264128,4.43665212,34081.0,34079.0,0.69253009]
[1625516264329,4.41926862,34081.0,34079.0,0.69253009]
[1625516264430,3.16440749,34080.0,34079.0,0.69253009]
[1625516264528,3.28240749,34080.0,34079.0,0.69253009]
[1625516264779,3.28240749,34080.0,34079.0,1.73123601]
[1625516265485,2.07851711,34080.0,34079.0,0.69253009]
[1625516267534,2.07851711,34080.0,34078.0,0.69174026]
[1625516267834,0.68642511,34079.0,34078.0,0.69174026]
[1625516267934,0.74542511,34079.0,34078.0,0.69174026]
[1625516268037,0.80442511,34079.0,34078.0,0.69174026]
[1625516269638,0.118,34079.0,34078.0,0.69174026]
[1625516269940,0.118,34079.0,34078.0,1.72889019]
[1625516270390,0.118,34079.0,34078.0,0.69174026]
[1625516270792,0.118,34079.0,34078.0,1.72877619]
[1625516271246,0.118,34079.0,34078.0,0.69174026]
[1625516272196,0.80574096,34079.0,34077.0,0.93176781]
[1625516272547,0.118,34079.0,34077.0,0.93176781]
[1625516275957,0.059,34079.0,34077.0,0.93176781]
[1625516276055,0.118,34079.0,34077.0,0.93176781]
[1625516277208,0.059,34079.0,34077.0,0.93176781]
[1625516277309,0.118,34079.0,34077.0,0.93176781]
[1625516277409,0.059,34079.0,34077.0,0.93176781]
[1625516278763,0.118,34079.0,34077.0,0.93176781]
[1625516279664,3.6475,34079.0,34077.0,0.93176781]
[1625516282371,3.6475,34079.0,34077.0,0.24057544]
[1625516282471,3.93199,34079.0,34077.0,0.24057544]
[1625516285125,0.08600631,34078.0,34077.0,0.24057544]
[1625516285226,0.14500631,34078.0,34077.0,0.24057544]
[1625516285326,0.20400631,34078.0,34077.0,0.24057544]
[1625516286229,0.22139117,34078.0,34077.0,0.24057544]
[1625516286379,0.22139117,34078.0,34077.0,0.32683935]
[1625516286980,0.22139117,34078.0,34077.0,0.24057544]
[1625516290140,0.22139117,34078.0,34077.0,0.24405256]
[1625516294306,0.13538486,34078.0,34077.0,0.24405256]
[1625516295962,0.07638486,34078.0,34077.0,0.24405256]
[1625516296057,0.13538486,34078.0,34077.0,0.24405256]
[1625516296157,0.13538486,34078.0,34077.0,0.3302683]
[1625516296508,0.07638486,34078.0,34077.0,0.3302683]
[1625516296758,0.07638486,34078.0,34077.0,0.24405256]
[1625516297106,0.07638486,34078.0,34077.0,0.93376486]
[1625516298308,0.07638486,34078.0,34077.0,1.96844651]
[1625516298860,0.08596573,34082.0,34077.0,1.96844651]
[1625516298963,0.08596573,34082.0,34078.0,0.057]
[1625516299091,0.08596573,34082.0,34078.0,0.616]
[1625516299197,0.08596573,34082.0,34078.0,0.675]
[1625516299382,0.08596573,34082.0,34079.0,0.00347614]
[1625516299611,1.01187565,34089.0,34081.0,4.31058763]
[1625516299683,1.01187565,34089.0,34082.0,0.057]
[1625516299867,0.01662282,34088.0,34083.0,0.00347633]
[1625516299963,0.33032282,34088.0,34083.0,0.00347633]
[1625516300061,0.38932282,34088.0,34087.0,0.08621385]
[1625516300362,0.38932282,34088.0,34084.0,0.14322972]
[1625516300363,1.07700473,34088.0,34084.0,0.14322972]
[1625516300562,1.07700473,34088.0,34084.0,0.20222972]
[1625516300663,0.08610637,34086.0,34085.0,5.1814]
[1625516300762,0.08610637,34086.0,34085.0,5.1848764]
[1625516300862,0.14510637,34086.0,34085.0,5.2438764]
[1625516300963,0.16172994,34086.0,34085.0,5.66255088]
[1625516301166,0.07562357,34086.0,34085.0,5.66255088]
[1625516301765,0.76301175,34086.0,34085.0,5.66255088]
[1625516302868,0.76301175,34086.0,34085.0,5.1814]
[1625516303367,0.76301175,34086.0,34085.0,5.90312632]
[1625516305324,1.79555664,34086.0,34085.0,5.90312632]
[1625516308132,1.79555664,34086.0,34085.0,5.1814]
[1625516309684,1.79555664,34086.0,34085.0,5.90312632]
[1625516309885,3.00485562,34086.0,34085.0,5.98959702]
[1625516311839,4.38749663,34086.0,34085.0,5.90312632]
[1625516312943,3.00485562,34086.0,34085.0,5.90312632]
[1625516314247,4.38815987,34086.0,34085.0,6.59572646]
[1625516315499,4.38815987,34086.0,34085.0,7.63515917]
[1625516319113,4.32915987,34086.0,34085.0,7.63515917]
[1625516319408,4.32915987,34086.0,34085.0,8.84859245]
[1625516320209,2.94585562,34086.0,34085.0,8.84859245]
[1625516320309,2.94585562,34086.0,34085.0,8.85206865]
[1625516321410,2.94585562,34086.0,34085.0,10.23890043]
[1625516322663,1.73655664,34086.0,34085.0,10.23890043]
[1625516330185,1.73655664,34086.0,34085.0,5.05750043]
[1625516330736,1.79555664,34086.0,34085.0,5.05750043]
[1625516330850,3.00699659,34086.0,34085.0,3.67066865]
[1625516332090,2.94799659,34086.0,34085.0,3.67066865]
[1625516333590,3.00699659,34086.0,34085.0,3.67066865]
[1625516334792,2.94799659,34086.0,34085.0,3.67066865]
[1625516334995,3.00699659,34086.0,34085.0,3.67066865]
[1625516335346,2.94799659,34086.0,34085.0,3.66719245]
[1625516335546,4.33427838,34086.0,34085.0,2.45375917]
[1625516335645,4.39327838,34086.0,34085.0,2.45375917]
[1625516335745,4.33427838,34086.0,34085.0,2.45375917]
[1625516335846,3.00699659,34086.0,34085.0,2.45375917]
[1625516336498,4.39334322,34086.0,34085.0,2.45375917]
[1625516336701,4.33434322,34086.0,34085.0,2.45375917]
[1625516336902,4.39334322,34086.0,34085.0,2.45375917]
[1625516337001,2.94799659,34086.0,34085.0,2.45375917]
[1625516337102,3.00699659,34086.0,34085.0,2.45375917]
[1625516337503,4.39334917,34086.0,34085.0,2.45375917]
[1625516344167,4.39334917,34086.0,34085.0,2.45723555]
[1625516345171,4.33434917,34086.0,34085.0,2.45723555]
[1625516345672,4.33434917,34086.0,34085.0,3.66911664]
[1625516345771,4.33434917,34086.0,34085.0,3.72811664]
[1625516346073,2.94799659,34086.0,34085.0,3.72811664]
[1625516349683,2.94799659,34086.0,34085.0,5.11507562]
[1625516350041,3.00699659,34086.0,34085.0,5.11507562]
[1625516350135,2.94799659,34086.0,34085.0,5.11507562]
[1625516350986,3.00699659,34086.0,34085.0,5.38596562]
[1625516351638,2.94799659,34086.0,34085.0,5.38596562]
[1625516352092,3.46836655,34086.0,34085.0,5.90619216]
[1625516353089,3.52736655,34086.0,34085.0,5.90619216]
[1625516353590,3.46836655,34086.0,34085.0,5.90619216]
[1625516356045,3.46836655,34086.0,34085.0,5.91766333]
[1625516356145,2.2569266,34086.0,34085.0,7.53715859]
[1625516356644,1.20775814,34086.0,34085.0,7.53715859]
[1625516356894,0.94808682,34087.0,34085.0,7.53715859]
[1625516357016,0.94808682,34087.0,34086.0,0.01146011]
[1625516357095,1.2149712,34088.0,34086.0,5.26671547]
[1625516357096,1.04114807,34088.0,34086.0,5.26671547]
[1625516357203,1.04114807,34088.0,34086.0,5.38619111]
[1625516357296,1.04114807,34088.0,34087.0,0.01145329]
[1625516357397,1.04114807,34088.0,34087.0,0.07045329]
[1625516357495,1.04114807,34088.0,34087.0,0.13292888]
[1625516357595,0.9257,34089.0,34087.0,4.28863361]
[1625516357695,0.9257,34089.0,34088.0,0.01145092]
[1625516357796,0.9257,34089.0,34088.0,0.07045092]
[1625516357894,0.9257,34089.0,34088.0,0.12945092]
[1625516357997,0.94230796,34089.0,34088.0,0.13292644]
[1625516358097,0.94230796,34089.0,34088.0,4.28779801]
[1625516358297,0.94230796,34089.0,34088.0,8.34447345]
[1625516358749,0.9257,34089.0,34088.0,8.34447345]
[1625516358848,1.09929441,34089.0,34088.0,8.34447345]
[1625516359098,1.18617786,34089.0,34088.0,8.34447345]
[1625516360301,1.09929441,34089.0,34088.0,8.34447345]
[1625516360601,1.09929441,34089.0,34088.0,4.52837345]
[1625516360701,1.09929441,34089.0,34080.0,2.0505231]
[1625516360815,0.0888,34088.0,34080.0,2.0505231]
[1625516360901,0.5888,34088.0,34080.0,2.0505231]
[1625516361001,0.057,34087.0,34080.0,2.0505231]
[1625516361117,0.0869,34086.0,34080.0,1.0507231]
[1625516361209,5.1898,34081.0,34073.0,2.42367508]
[1625516361301,0.557,34080.0,34073.0,1.76807508]
[1625516361403,0.616,34080.0,34070.0,2.08054754]
[1625516361500,0.616,34080.0,34070.0,0.58084754]
[1625516361652,0.616,34080.0,34063.0,2.23325301]
[1625516361734,0.059,34073.0,34063.0,2.23325301]
[1625516361841,0.059,34070.0,34063.0,2.23325301]
[1625516361903,0.059,34070.0,34056.0,2.77406339]
[1625516362002,0.557,34072.0,34056.0,2.77406339]
[1625516362103,0.059,34063.0,34036.0,2.77524631]
[1625516362207,0.059,34056.0,34036.0,2.77524631]
[1625516362305,3.5841,34037.0,34036.0,2.77524631]
[1625516362404,4.60340176,34037.0,34036.0,2.77524631]
[1625516362505,4.97916176,34037.0,34036.0,2.77524631]
[1625516362821,4.92216176,34037.0,34036.0,2.77524631]
[1625516362934,1.33806176,34037.0,34036.0,2.77524631]
[1625516363307,1.39506176,34037.0,34036.0,2.77524631]
[1625516363406,6.05686176,34037.0,34035.0,0.9171]
[1625516363808,6.31277705,34037.0,34036.0,0.25926555]
[1625516364510,6.31277705,34037.0,34035.0,0.9171]
[1625516364511,6.05686176,34037.0,34035.0,1.00351473]
[1625516364859,6.05686176,34037.0,34035.0,0.9171]
[1625516365862,5.99786176,34037.0,34035.0,0.8581]
[1625516366159,1.33606176,34037.0,34035.0,0.8581]
[1625516367614,1.39506176,34037.0,34035.0,0.8581]
[1625516368369,1.07830176,34037.0,34035.0,0.8581]
[1625516368466,1.02130176,34037.0,34035.0,0.8581]
[1625516368566,1.02130176,34037.0,34035.0,0.9171]
[1625516368666,0.96230176,34037.0,34035.0,0.9171]
[1625516368867,0.96230176,34037.0,34035.0,0.9761]
[1625516368968,0.96230176,34037.0,34035.0,0.9171]
[1625516369067,0.96230176,34037.0,34035.0,0.8581]
[1625516369169,1.35022176,34037.0,34035.0,0.8581]
[1625516369271,1.40922176,34037.0,34035.0,0.8581]
[1625516369469,1.46822176,34037.0,34035.0,0.8581]
[1625516371138,1.55261164,34037.0,34035.0,0.8581]
[1625516371325,1.49361164,34037.0,34035.0,0.7991]
[1625516371526,1.55261164,34037.0,34035.0,0.7991]
[1625516371627,1.46822176,34037.0,34035.0,0.7991]
[1625516373437,1.46822176,34037.0,34009.0,0.49710898]
[1625516373537,1.46822176,34037.0,34009.0,0.24057544]
[1625516373637,1.46822176,34037.0,34009.0,0.29957544]
[1625516373737,1.46822176,34037.0,34009.0,0.35857544]
[1625516373840,3.9662,34027.0,34009.0,0.35857544]
[1625516373938,0.057,34026.0,34009.0,0.35857544]
[1625516374039,0.45361,34026.0,34009.0,0.35857544]
[1625516374141,0.51261,34026.0,34009.0,0.35857544]
[1625516374340,0.48115088,34010.0,34009.0,0.24057544]
[1625516374440,0.48115088,34010.0,34009.0,0.29957544]
[1625516374541,0.48115088,34010.0,34009.0,0.35857544]
[1625516375041,0.24057544,34010.0,34009.0,0.35857544]
[1625516378347,0.24057544,34010.0,34008.0,3.23547544]
[1625516378549,0.24057544,34010.0,34008.0,3.29447544]
[1625516378646,0.24057544,34010.0,34008.0,3.35347544]
[1625516379047,0.24057544,34010.0,34008.0,3.29447544]
[1625516379146,0.24057544,34010.0,34008.0,3.35347544]
[1625516379948,0.24057544,34016.0,34008.0,3.35347544]
[1625516380148,0.24057544,34016.0,34008.0,3.59212544]
[1625516380449,0.24057544,34016.0,34015.0,0.48115088]
[1625516380549,0.24057544,34016.0,34015.0,0.54015088]
[1625516381453,0.24057544,34016.0,34015.0,0.48115088]
[1625516382255,0.24057544,34016.0,34015.0,0.54015088]
[1625516383508,0.24057544,34016.0,34015.0,0.48115088]
[1625516386314,0.24057544,34016.0,34015.0,0.54015088]
[1625516387469,0.24057544,34016.0,34015.0,0.48115088]
[1625516388020,0.24057544,34016.0,34015.0,0.54015088]
[1625516388120,0.24057544,34016.0,34015.0,0.59915088]
[1625516388720,0.24057544,34016.0,34015.0,0.60263242]
[1625516389121,0.24057544,34016.0,34015.0,0.54363242]
[1625516389772,0.24057544,34016.0,34015.0,0.60263242]
[1625516390776,0.24057544,34016.0,34015.0,0.61133626]
[1625516391034,0.24057544,34016.0,34015.0,0.55233626]
[1625516393533,0.24057544,34016.0,34015.0,0.61133626]
[1625516394535,0.24057544,34016.0,34015.0,0.55233626]
[1625516394785,0.24057544,34016.0,34015.0,0.61133626]
[1625516395937,0.24057544,34016.0,34015.0,0.55233626]
[1625516397393,0.24057544,34016.0,34015.0,0.77697626]
[1625516398743,0.24057544,34016.0,34015.0,0.79438534]
[1625516399445,7.544e-05,34016.0,34015.0,0.79438534]
[1625516399545,0.24057544,34023.0,34015.0,0.79438534]
[1625516399646,0.057,34037.0,34015.0,0.85338534]
[1625516399748,0.116,34037.0,34015.0,0.85338534]
[1625516399847,0.175,34037.0,34016.0,0.02959391]
[1625516399947,0.116,34037.0,34016.0,0.08859391]
[1625516400148,0.175,34037.0,34016.0,0.14759391]
[1625516400346,0.175,34037.0,34024.0,5.29314]
[1625516400448,0.24057544,34034.0,34033.0,0.24057544]
[1625516400546,0.29757544,34034.0,34033.0,0.24057544]
[1625516400647,0.41557544,34034.0,34033.0,0.24057544]
[1625516400951,0.41557544,34034.0,34033.0,0.24405696]
[1625516401047,0.41557544,34034.0,34033.0,0.00348152]
[1625516401146,0.41557544,34034.0,34033.0,0.01218525]
[1625516401395,0.41557544,34034.0,34030.0,0.01218564]
[1625516401700,0.41557544,34034.0,34033.0,0.00348161]
[1625516401948,0.41557544,34034.0,34031.0,0.01218581]
[1625516402202,0.41557544,34034.0,34030.0,0.01218582]
[1625516402499,0.41557544,34034.0,34029.0,0.24057544]
[1625516402500,0.24057544,34031.0,34029.0,0.24057544]
[1625516402599,0.057,34030.0,34029.0,0.24057544]
[1625516402799,0.116,34030.0,34029.0,0.24057544]
[1625516402999,0.116,34030.0,34029.0,0.25276068]
[1625516403349,0.057,34030.0,34029.0,0.25276068]
[1625516404304,0.116,34030.0,34029.0,0.25276068]
[1625516405607,0.057,34030.0,34029.0,0.25276068]
[1625516406861,0.116,34030.0,34029.0,0.25276068]
[1625516409364,0.116,34030.0,34029.0,0.24405694]
[1625516409917,0.116,34030.0,34029.0,0.2527613]
[1625516410718,0.116,34030.0,34029.0,0.24405694]
[1625516410969,0.116,34030.0,34029.0,0.25276141]
[1625516411269,0.116,34030.0,34029.0,0.24405694]
[1625516412924,0.057,34030.0,34029.0,0.24405694]
[1625516413024,0.116,34030.0,34029.0,0.24405694]
[1625516413523,0.057,34030.0,34029.0,0.24405694]
[1625516413625,0.116,34030.0,34029.0,0.24405694]
[1625516413924,0.33994,34030.0,34029.0,0.24405694]
[1625516416684,0.35671619,34030.0,34029.0,0.24405694]
[1625516417484,0.35671619,34030.0,34029.0,0.24405752]
[1625516417587,0.13277619,34030.0,34029.0,0.24405752]
[1625516417785,0.52552619,34030.0,34029.0,0.00348208]
[1625516418087,0.52552619,34030.0,34027.0,0.00348239]
[1625516418287,0.01677792,34029.0,34018.0,0.00348248]
[1625516418387,4.415,34023.0,34018.0,0.00348248]
[1625516418488,0.057,34022.0,34018.0,0.00348248]
[1625516418687,0.24057544,34019.0,34018.0,0.00348248]
[1625516418786,0.29757544,34019.0,34018.0,0.00348248]
[1625516418987,0.35657544,34019.0,34018.0,0.00348248]
[1625516419089,0.43234546,34019.0,34018.0,0.00348248]
[1625516419388,0.43234546,34019.0,34014.0,0.00348281]
[1625516419701,1.10164927,34019.0,34012.0,0.24057544]
[1625516419890,0.01677101,34018.0,34012.0,0.24057544]
[1625516420088,0.13477101,34018.0,34012.0,0.24057544]
[1625516420190,0.25123806,34015.0,34012.0,0.24057544]
[1625516420307,0.057,34014.0,34010.0,0.9605]
[1625516420435,0.057,34014.0,34003.0,0.60274656]
[1625516420496,0.116,34014.0,34003.0,0.60274656]
[1625516420589,0.175,34014.0,34003.0,0.60274656]
[1625516420692,0.96230176,34004.0,34003.0,0.60274656]
[1625516420792,0.96230176,34004.0,33989.0,0.9671]
[1625516420793,1.01930176,34004.0,33994.0,0.60268344]
[1625516420889,1.41265176,34004.0,33994.0,0.60268344]
[1625516421189,4.0098,34002.0,33994.0,0.60268344]
[1625516421291,4.0098,34002.0,33990.0,1.20536688]
[1625516421292,0.0840868,33998.0,33997.0,1.03986108]
[1625516421389,0.1410868,33998.0,33997.0,1.03986108]
[1625516421490,0.2000868,33998.0,33997.0,1.03986108]
[1625516421742,0.2590868,33998.0,33997.0,1.03986108]
[1625516421842,3.02491731,33998.0,33995.0,0.08666588]
[1625516421941,2.96591731,33998.0,33995.0,0.08666588]
[1625516422044,3.02491731,33998.0,33995.0,0.08666588]
[1625516422144,3.02491731,33998.0,33994.0,0.51999526]
[1625516422145,0.67091518,33997.0,33996.0,0.60666515]
[1625516422242,1.00206518,33997.0,33996.0,0.60666515]
[1625516422354,1.06106518,33997.0,33996.0,0.60666515]
[1625516422445,1.12006518,33997.0,33996.0,0.60666515]
[1625516422544,1.12006518,33997.0,33996.0,0.5199987]
[1625516422643,2.12416888,33997.0,33992.0,0.25963651]
[1625516422745,2.8458952,33997.0,33992.0,0.25963651]
[1625516422994,0.58654597,33996.0,33994.0,0.08654338]
[1625516423092,0.057,33995.0,33994.0,0.08654338]
[1625516423193,0.116,33995.0,33994.0,0.08654338]
[1625516423394,0.175,33995.0,33994.0,0.08654338]
[1625516423644,0.175,33995.0,33991.0,0.25963606]
[1625516423645,0.84440408,33995.0,33991.0,0.25963606]
[1625516424045,0.78540408,33995.0,33991.0,0.25963606]
[1625516424145,0.58618694,33994.0,33992.0,0.08654494]
[1625516424245,0.64318694,33994.0,33992.0,0.08654494]
[1625516424345,0.94040694,33994.0,33990.0,0.53847496]
[1625516424453,0.94040694,33994.0,33985.0,1.27696913]
[1625516424454,0.99940694,33994.0,33985.0,1.27696913]
[1625516424546,0.41322,33994.0,33991.0,0.08641384]
[1625516424746,0.48115088,33992.0,33991.0,0.08641384]
[1625516424848,0.53815088,33992.0,33991.0,0.02741384]
[1625516424949,0.65615088,33992.0,33989.0,0.24322453]
[1625516425148,0.65615088,33992.0,33975.0,1.0373105]
[1625516425149,1.65592773,33992.0,33975.0,1.0373105]
[1625516425348,1.65592773,33992.0,33975.0,1.0963105]
[1625516425549,1.00003713,33987.0,33975.0,1.0373105]
[1625516425648,4.5131,33978.0,33975.0,1.0373105]
[1625516425749,0.27481,33977.0,33975.0,1.0373105]
[1625516425949,0.33381,33977.0,33975.0,1.0373105]
[1625516426050,0.33381,33977.0,33970.0,1.98289649]
[1625516426199,0.27481,33977.0,33970.0,2.04189649]
[1625516426299,0.33381,33977.0,33970.0,2.04189649]
[1625516426549,0.33381,33977.0,33970.0,1.0044]
[1625516426699,0.48115088,33971.0,33970.0,1.0044]
[1625516426800,0.53815088,33971.0,33970.0,1.0044]
[1625516426899,0.53815088,33971.0,33970.0,0.9454]
[1625516426999,0.59715088,33971.0,33970.0,0.059]
[1625516427100,0.59715088,33971.0,33968.0,1.26]
[1625516427202,0.59715088,33971.0,33970.0,0.059]
[1625516427300,0.53815088,33971.0,33968.0,1.26]
[1625516427704,0.59715088,33971.0,33968.0,1.26]
[1625516427869,0.21781,33977.0,33968.0,1.26]
[1625516428553,0.70230994,33988.0,33970.0,1.3878]
[1625516428594,0.70230994,33988.0,33970.0,1.4448]
[1625516428606,0.99262359,33973.0,33970.0,1.67043255]
[1625516428663,0.99262359,33973.0,33971.0,0.059]
[1625516428698,0.71702359,33973.0,33970.0,0.28463255]
[1625516428711,1.18245268,33980.0,33972.0,0.01111802]
[1625516428722,0.99854247,34000.0,33977.0,0.059]
[1625516428729,0.99854247,34000.0,33987.0,0.475]
[1625516428740,0.99854247,34000.0,33989.0,0.4128]
[1625516428806,0.99854247,34000.0,33999.0,0.96230176]
[1625516428964,0.99965001,34004.0,33999.0,1.45213176]
[1625516429210,0.99965001,34004.0,33999.0,1.57013176]
[1625516429406,1.0001411,34007.0,33999.0,1.57013176]
[1625516429604,1.0001411,34007.0,33999.0,1.51113176]
[1625516429906,1.67055506,34026.0,33999.0,1.51113176]
[1625516430307,1.67055506,34026.0,34025.0,3.6942]
[1625516430408,0.24057544,34028.0,34025.0,3.7532]
[1625516430507,0.24057544,34028.0,34025.0,3.96685]
[1625516430708,0.24057544,34028.0,34025.0,4.14842544]
[1625516430811,0.24057544,34028.0,34025.0,4.20742544]
[1625516430910,0.24057544,34028.0,34025.0,3.800024]
[1625516431810,0.24057544,34028.0,34025.0,3.859024]
[1625516432412,0.24057544,34028.0,34025.0,3.800024]
[1625516432614,0.24057544,34028.0,34025.0,3.859024]
[1625516432715,0.24057544,34026.0,34025.0,3.859024]
[1625516433115,0.24057544,34026.0,34025.0,3.800024]
[1625516433217,0.24057544,34026.0,34025.0,3.859024]
[1625516433426,0.24057544,34028.0,34025.0,3.859024]
[1625516433819,0.24057544,34028.0,34025.0,3.800024]
[1625516433919,0.24057544,34028.0,34025.0,3.859024]
[1625516434720,0.24057544,34028.0,34027.0,0.24057544]
[1625516434822,0.24057544,34028.0,34027.0,0.35857544]
[1625516435625,0.24057544,34028.0,34027.0,0.29957544]
[1625516436024,0.24057544,34028.0,34027.0,0.059]
[1625516436157,0.24057544,34028.0,34018.0,0.24057544]
[1625516436351,0.24057544,34028.0,33999.0,4.6203]
[1625516436352,0.56425544,34028.0,33999.0,4.6203]
[1625516436367,0.56425544,34028.0,33991.0,1.72026267]
[1625516436368,1.12325544,34028.0,33991.0,1.72026267]
[1625516436441,1.12325544,34028.0,34027.0,0.02512792]
[1625516436539,1.12325544,34028.0,33999.0,0.0488965]
[1625516436626,1.12325544,34028.0,33991.0,1.77926267]
[1625516436738,0.059,34026.0,33991.0,1.72026267]
[1625516436854,0.059,34026.0,33997.0,0.24057544]
[1625516436855,0.24057544,34000.0,33997.0,0.24057544]
[1625516437044,0.24057544,34000.0,33997.0,0.29957544]
[1625516438226,0.24057544,34000.0,33997.0,0.35857544]
[1625516438926,0.24057544,34000.0,33997.0,0.24057544]
[1625516439227,0.24057544,34000.0,33997.0,0.35857544]
[1625516440781,0.24057544,33998.0,33997.0,0.35857544]
[1625516447998,0.24057544,34000.0,33997.0,0.35857544]
[1625516448098,0.24057544,34000.0,33997.0,0.57650544]
[1625516448849,0.24057544,34000.0,33999.0,0.24057544]
[1625516449049,0.24057544,34000.0,33999.0,0.35857544]
[1625516449158,0.24057544,34000.0,33994.0,0.51550384]
[1625516449253,0.24057544,34000.0,33994.0,0.01520384]
[1625516449376,0.557,33999.0,33994.0,0.07420384]
[1625516449493,0.057,33999.0,33994.0,0.01520384]
[1625516449813,0.116,33999.0,33994.0,0.01520384]